[Event "Sabato rapido!"]
[Site "Chess.com"]
[Date "2020.05.02"]
[Round "3"]
[White "sirmale49"]
[Black "caramante"]
[Result "0-1"]
[WhiteElo "1384"]
[BlackElo "1520"]
[TimeControl "720+3"]
[EndTime "7:06:01 PDT"]
[Termination "caramante ha vinto per abbandono"]

1. e4 {[%clk 0:12:02.9]} 1... c5 {[%clk 0:11:59.6]} 2. f4 {[%clk 0:12:03.6]}
2... d6 {[%clk 0:12:00.5]} 3. Nf3 {[%clk 0:12:04.8]} 3... Nf6 {[%clk 0:12:02.3]}
4. Nc3 {[%clk 0:12:00.7]} 4... a6 {[%clk 0:12:01.7]} 5. d3 {[%clk 0:11:57.7]}
5... Bg4 {[%clk 0:12:01]} 6. h3 {[%clk 0:11:58.4]} 6... Bxf3 {[%clk 0:12:00.6]}
7. Qxf3 {[%clk 0:11:59.6]} 7... Nc6 {[%clk 0:12:02.5]} 8. Be3 {[%clk 0:11:57.9]}
8... e6 {[%clk 0:11:58.5]} 9. Be2 {[%clk 0:11:53.1]} 9... Be7 {[%clk 0:12:00.3]}
10. O-O {[%clk 0:11:54.2]} 10... O-O {[%clk 0:12:00.3]} 11. Rad1 {[%clk
0:11:31.9]} 11... Nd4 {[%clk 0:11:59.7]} 12. Bxd4 {[%clk 0:11:17.9]} 12... cxd4
{[%clk 0:11:59.4]} 13. Nb1 {[%clk 0:11:01.6]} 13... Qb6 {[%clk 0:11:46.2]} 14.
b3 {[%clk 0:10:59.7]} 14... Rac8 {[%clk 0:11:44.8]} 15. Na3 {[%clk 0:10:43.1]}
15... Qb4 {[%clk 0:11:37.7]} 16. Nc4 {[%clk 0:10:42.1]} 16... b5 {[%clk
0:11:31.7]} 17. a3 {[%clk 0:10:42.7]} 17... Qc5 {[%clk 0:11:21.7]} 18. b4 {[%clk
0:10:33.2]} 18... Qc7 {[%clk 0:11:16.1]} 19. e5 {[%clk 0:10:17.9]} 19... Nd5
{[%clk 0:11:07.5]} 20. exd6 {[%clk 0:10:13.9]} 20... Bxd6 {[%clk 0:11:06.6]} 21.
Nxd6 {[%clk 0:10:15.2]} 21... Qxd6 {[%clk 0:11:07.9]} 22. Rc1 {[%clk 0:10:15.4]}
22... Ne3 {[%clk 0:11:02.9]} 23. Rfe1 {[%clk 0:10:04]} 23... Nxc2 {[%clk
0:10:58.2]} 24. Qb7 {[%clk 0:09:44.4]} 24... Rc7 {[%clk 0:10:49.8]} 25. Qe4
{[%clk 0:09:07.9]} 25... Nxe1 {[%clk 0:10:45.9]} 26. Rxe1 {[%clk 0:09:06.7]}
26... Rfc8 {[%clk 0:10:46.1]} 27. Kf2 {[%clk 0:09:00.2]} 27... Rc2 {[%clk
0:10:17.2]} 28. Kg3 {[%clk 0:08:47.1]} 28... g5 {[%clk 0:10:15.3]} 29. Rf1
{[%clk 0:07:11.6]} 29... f5 {[%clk 0:09:50]} 30. Qb7 {[%clk 0:05:49]} 30... R8c7
{[%clk 0:08:43.8]} 31. Qb8+ {[%clk 0:05:29]} 31... Kg7 {[%clk 0:08:43.1]} 32.
Bh5 {[%clk 0:04:30.5]} 32... Rxg2+ {[%clk 0:08:29.7]} 0-1

[Event "Sabato rapido!"]
[Site "Chess.com"]
[Date "2020.05.02"]
[Round "3"]
[White "sergiodone"]
[Black "donaldnecesito"]
[Result "0-1"]
[WhiteElo "1482"]
[BlackElo "1625"]
[TimeControl "720+3"]
[EndTime "7:16:09 PDT"]
[Termination "donaldnecesito ha vinto per tempo"]

1. e4 {[%clk 0:11:59.8]} 1... c5 {[%clk 0:11:40.9]} 2. Nf3 {[%clk 0:12:00]} 2...
d6 {[%clk 0:11:42.6]} 3. c3 {[%clk 0:11:59.7]} 3... Nf6 {[%clk 0:11:41.5]} 4.
Qc2 {[%clk 0:11:44.1]} 4... g6 {[%clk 0:11:42]} 5. d4 {[%clk 0:11:45.6]} 5...
cxd4 {[%clk 0:11:43.8]} 6. cxd4 {[%clk 0:11:46.5]} 6... Bg7 {[%clk 0:11:46.4]}
7. Nc3 {[%clk 0:11:44.7]} 7... a6 {[%clk 0:11:47.5]} 8. a3 {[%clk 0:11:19.1]}
8... O-O {[%clk 0:11:48.1]} 9. Bd3 {[%clk 0:11:20.7]} 9... Bg4 {[%clk
0:11:48.1]} 10. Be2 {[%clk 0:11:09.1]} 10... Nc6 {[%clk 0:11:48.5]} 11. Be3
{[%clk 0:11:08.4]} 11... Rc8 {[%clk 0:11:49.5]} 12. Qd2 {[%clk 0:11:07.8]} 12...
b5 {[%clk 0:11:21.4]} 13. O-O {[%clk 0:11:07.3]} 13... b4 {[%clk 0:11:15.8]} 14.
axb4 {[%clk 0:11:07.7]} 14... Nxb4 {[%clk 0:11:17.1]} 15. Rfc1 {[%clk
0:10:29.1]} 15... e6 {[%clk 0:11:01.4]} 16. Bg5 {[%clk 0:09:48.7]} 16... Qd7
{[%clk 0:09:39.7]} 17. Qe3 {[%clk 0:09:36.4]} 17... Rc6 {[%clk 0:08:38.7]} 18.
Bxf6 {[%clk 0:09:37]} 18... Bxf6 {[%clk 0:08:37]} 19. e5 {[%clk 0:09:38.8]}
19... Bg7 {[%clk 0:08:10.6]} 20. Qf4 {[%clk 0:09:36.4]} 20... Bf5 {[%clk
0:07:53]} 21. Ne4 {[%clk 0:08:10.3]} 21... Bxe4 {[%clk 0:07:14.1]} 22. Qxe4
{[%clk 0:08:10.9]} 22... d5 {[%clk 0:07:15.8]} 23. Qe3 {[%clk 0:08:07.4]} 23...
Nc2 {[%clk 0:07:10.6]} 24. Qb3 {[%clk 0:07:08.1]} 24... Nxa1 {[%clk 0:07:05.9]}
25. Rxa1 {[%clk 0:07:08]} 25... Rfc8 {[%clk 0:06:44.4]} 26. h3 {[%clk
0:07:06.5]} 26... Rc1+ {[%clk 0:06:40.5]} 27. Rxc1 {[%clk 0:07:00.8]} 27...
Rxc1+ {[%clk 0:06:43.4]} 28. Kh2 {[%clk 0:06:59.1]} 28... Rc6 {[%clk 0:05:40.4]}
29. Qa4 {[%clk 0:06:41]} 29... Qb7 {[%clk 0:05:35.4]} 30. b4 {[%clk 0:06:07]}
30... f6 {[%clk 0:05:35.2]} 31. b5 {[%clk 0:06:01.8]} 31... axb5 {[%clk
0:05:35.7]} 32. Bxb5 {[%clk 0:06:01.9]} 32... Rb6 {[%clk 0:04:59.8]} 33. Bf1
{[%clk 0:05:31.5]} 33... fxe5 {[%clk 0:04:57.2]} 34. Qe8+ {[%clk 0:05:03.8]}
34... Bf8 {[%clk 0:04:56.9]} 35. Nxe5 {[%clk 0:05:02.4]} 35... Qe7 {[%clk
0:04:43.5]} 36. Qa4 {[%clk 0:04:54.5]} 36... Rb4 {[%clk 0:04:26.8]} 37. Qa1
{[%clk 0:04:32.7]} 37... Qh4 {[%clk 0:04:16.6]} 38. Ng4 {[%clk 0:03:29.9]} 38...
h5 {[%clk 0:04:08.8]} 39. g3 {[%clk 0:03:30.7]} 39... Qg5 {[%clk 0:03:32.2]} 40.
f4 {[%clk 0:03:31.6]} 40... Qd8 {[%clk 0:03:25.7]} 41. Ne5 {[%clk 0:03:20.1]}
41... Qb6 {[%clk 0:03:11.5]} 42. Nf3 {[%clk 0:01:41.6]} 42... Rb2+ {[%clk
0:02:37.7]} 43. Bg2 {[%clk 0:01:42.7]} 43... Qb3 {[%clk 0:02:28.9]} 44. Qe1
{[%clk 0:01:41]} 44... Qxf3 {[%clk 0:02:00.6]} 45. Qxe6+ {[%clk 0:01:41.9]}
45... Kh7 {[%clk 0:01:57.9]} 0-1

[Event "Sabato rapido!"]
[Site "Chess.com"]
[Date "2020.05.02"]
[Round "3"]
[White "bellapero"]
[Black "moha1812med"]
[Result "1-0"]
[WhiteElo "1338"]
[BlackElo "997"]
[TimeControl "720+3"]
[EndTime "7:16:45 PDT"]
[Termination "bellapero ha vinto per abbandono"]

1. e4 {[%clk 0:12:02.9]} 1... e5 {[%clk 0:11:56.6]} 2. Nf3 {[%clk 0:12:03.5]}
2... Nc6 {[%clk 0:11:55.4]} 3. Nc3 {[%clk 0:12:04.1]} 3... Nf6 {[%clk
0:11:55.5]} 4. d4 {[%clk 0:12:02.1]} 4... Bd6 {[%clk 0:11:19]} 5. d5 {[%clk
0:11:25.9]} 5... Nb4 {[%clk 0:10:52.3]} 6. Be2 {[%clk 0:10:52]} 6... O-O {[%clk
0:10:46.4]} 7. O-O {[%clk 0:10:52.4]} 7... h6 {[%clk 0:10:47.6]} 8. a3 {[%clk
0:10:17]} 8... Na6 {[%clk 0:10:34.7]} 9. Be3 {[%clk 0:09:45.8]} 9... Bc5 {[%clk
0:10:02.7]} 10. Bxc5 {[%clk 0:09:29.8]} 10... Nxc5 {[%clk 0:10:02.8]} 11. Bd3
{[%clk 0:08:35.4]} 11... d6 {[%clk 0:09:26]} 12. Nh4 {[%clk 0:08:12.9]} 12...
Bg4 {[%clk 0:09:20.3]} 13. f3 {[%clk 0:08:03.2]} 13... Bh5 {[%clk 0:09:21.1]}
14. Nf5 {[%clk 0:07:59.8]} 14... Nxd3 {[%clk 0:08:49.2]} 15. cxd3 {[%clk
0:07:18.3]} 15... c6 {[%clk 0:08:32.2]} 16. Qe1 {[%clk 0:06:17.8]} 16... Qb6+
{[%clk 0:08:21.8]} 17. Rf2 {[%clk 0:05:53.1]} 17... cxd5 {[%clk 0:08:07.6]} 18.
Nxd5 {[%clk 0:05:39.2]} 18... Nxd5 {[%clk 0:07:58.7]} 19. exd5 {[%clk
0:05:37.8]} 19... Qd8 {[%clk 0:07:24.9]} 20. Qb4 {[%clk 0:05:20.7]} 20... g6
{[%clk 0:06:56.6]} 21. Nxd6 {[%clk 0:05:18.6]} 21... a5 {[%clk 0:06:11.2]} 22.
Qc5 {[%clk 0:04:20.8]} 22... b6 {[%clk 0:06:10.8]} 23. Qc6 {[%clk 0:02:55.8]}
23... Rc8 {[%clk 0:05:41.8]} 24. Nxc8 {[%clk 0:02:53]} 24... Qxc8 {[%clk
0:05:43.4]} 25. g4 {[%clk 0:02:34.3]} 25... Qxc6 {[%clk 0:05:31.8]} 26. dxc6
{[%clk 0:02:31.2]} 26... Rc8 {[%clk 0:05:24.5]} 27. Rc1 {[%clk 0:02:30.7]} 27...
Bxg4 {[%clk 0:04:37.5]} 28. fxg4 {[%clk 0:02:31]} 28... Kf8 {[%clk 0:04:39.4]}
29. Re2 {[%clk 0:02:26.9]} 29... f6 {[%clk 0:04:38.8]} 30. Rf2 {[%clk
0:02:25.6]} 30... Ke7 {[%clk 0:04:39.6]} 31. Re2 {[%clk 0:02:23.3]} 31... Kd6
{[%clk 0:04:25.9]} 32. Rec2 {[%clk 0:01:38.9]} 32... f5 {[%clk 0:04:16.8]} 33.
c7 {[%clk 0:01:38.2]} 33... fxg4 {[%clk 0:04:16.4]} 34. Rc6+ {[%clk 0:01:36.3]}
34... Kd7 {[%clk 0:04:16.9]} 35. Rxg6 {[%clk 0:01:28.2]} 35... h5 {[%clk
0:04:08]} 36. Rg7+ {[%clk 0:01:26.7]} 36... Kd6 {[%clk 0:04:08.6]} 37. Rg6+
{[%clk 0:01:23.8]} 37... Kd7 {[%clk 0:04:09.3]} 38. Rxb6 {[%clk 0:01:24.9]}
38... h4 {[%clk 0:04:06.9]} 39. Rb8 {[%clk 0:01:20.5]} 39... Rxc7 {[%clk
0:04:00]} 40. Rxc7+ {[%clk 0:01:21.2]} 40... Kxc7 {[%clk 0:04:02.5]} 41. Rb5
{[%clk 0:01:17.9]} 41... Kd6 {[%clk 0:04:00.7]} 42. Rxa5 {[%clk 0:01:19.3]}
42... Ke6 {[%clk 0:04:02.6]} 43. Kf2 {[%clk 0:01:19.1]} 43... Kf5 {[%clk
0:04:04.4]} 44. d4 {[%clk 0:01:18.1]} 44... Kf4 {[%clk 0:04:03.9]} 45. Rxe5
{[%clk 0:01:18.5]} 45... g3+ {[%clk 0:04:05]} 46. hxg3+ {[%clk 0:01:19.4]} 46...
hxg3+ {[%clk 0:04:06.8]} 47. Kg1 {[%clk 0:01:19.1]} 47... Kf3 {[%clk 0:04:04.8]}
48. Rg5 {[%clk 0:01:17.9]} 48... Kf4 {[%clk 0:04:03.5]} 49. Rg8 {[%clk
0:01:17.7]} 49... Kf3 {[%clk 0:04:05.2]} 50. d5 {[%clk 0:01:17.7]} 50... Ke4
{[%clk 0:04:05.3]} 51. Rxg3 {[%clk 0:01:16.8]} 51... Kxd5 {[%clk 0:04:06.9]} 52.
Rg4 {[%clk 0:01:17.1]} 52... Ke5 {[%clk 0:04:07.2]} 53. Kf2 {[%clk 0:01:18.1]}
53... Kf5 {[%clk 0:04:08.8]} 54. Ra4 {[%clk 0:01:19.6]} 54... Ke5 {[%clk
0:04:09.6]} 55. Ke3 {[%clk 0:01:21.5]} 55... Kd5 {[%clk 0:04:11.3]} 56. Kd3
{[%clk 0:01:21.9]} 56... Ke5 {[%clk 0:03:28.6]} 57. Rb4 {[%clk 0:01:20.9]} 57...
Kf5 {[%clk 0:03:28]} 58. Ke3 {[%clk 0:01:21.5]} 58... Ke5 {[%clk 0:03:29.4]} 59.
Rb5+ {[%clk 0:01:22.6]} 59... Kf6 {[%clk 0:03:29.9]} 60. Ke4 {[%clk 0:01:23.9]}
60... Kg6 {[%clk 0:03:27.9]} 61. Kf4 {[%clk 0:01:25.4]} 61... Kh6 {[%clk
0:03:27.6]} 62. Kg4 {[%clk 0:01:27]} 62... Kg6 {[%clk 0:03:24.4]} 63. Rb6+
{[%clk 0:01:28.5]} 63... Kf7 {[%clk 0:03:25.8]} 64. Kg5 {[%clk 0:01:29.8]} 64...
Ke7 {[%clk 0:03:26.9]} 65. Kf5 {[%clk 0:01:31.5]} 65... Kd7 {[%clk 0:03:28.8]}
66. Ke5 {[%clk 0:01:32.1]} 66... Kc7 {[%clk 0:03:30.3]} 67. Rh6 {[%clk
0:01:33.4]} 67... Kd7 {[%clk 0:03:24.9]} 68. Rg6 {[%clk 0:01:33.5]} 68... Kc7
{[%clk 0:03:23.6]} 69. Kd5 {[%clk 0:01:34.4]} 69... Kb7 {[%clk 0:03:24.6]} 70.
Kc5 {[%clk 0:01:36.1]} 70... Ka7 {[%clk 0:03:24.8]} 71. Kb5 {[%clk 0:01:37.4]}
71... Kb7 {[%clk 0:03:26.6]} 72. Rg7+ {[%clk 0:01:39.1]} 72... Kc8 {[%clk
0:03:28.4]} 73. Kb6 {[%clk 0:01:40.7]} 73... Kd8 {[%clk 0:03:29.4]} 74. Kc6
{[%clk 0:01:42.5]} 74... Ke8 {[%clk 0:03:30.9]} 75. Kd6 {[%clk 0:01:44.1]} 75...
Kf8 {[%clk 0:03:32.7]} 76. Ra7 {[%clk 0:01:45.4]} 76... Kg8 {[%clk 0:03:33]} 77.
Ke6 {[%clk 0:01:47]} 77... Kh8 {[%clk 0:03:33.7]} 78. Kf6 {[%clk 0:01:48.7]}
78... Kg8 {[%clk 0:03:28.9]} 79. Rb7 {[%clk 0:01:50.2]} 79... Kh8 {[%clk
0:03:22.7]} 80. Kg6 {[%clk 0:01:51.4]} 1-0

[Event "Sabato rapido!"]
[Site "Chess.com"]
[Date "2020.05.02"]
[Round "4"]
[White "crippo"]
[Black "pedrak"]
[Result "0-1"]
[WhiteElo "1484"]
[BlackElo "1636"]
[TimeControl "720+3"]
[EndTime "7:28:35 PDT"]
[Termination "pedrak ha vinto per abbandono"]

1. e4 {[%clk 0:12:02.9]} 1... d6 {[%clk 0:12:00.8]} 2. d4 {[%clk 0:12:03.5]}
2... Nf6 {[%clk 0:11:58.5]} 3. Nc3 {[%clk 0:12:03.9]} 3... g6 {[%clk 0:11:58.9]}
4. Nf3 {[%clk 0:12:05]} 4... Bg7 {[%clk 0:12:00.3]} 5. Bg5 {[%clk 0:12:06.1]}
5... h6 {[%clk 0:12:01.5]} 6. Bh4 {[%clk 0:12:07.8]} 6... O-O {[%clk 0:12:02.6]}
7. Bc4 {[%clk 0:12:07.9]} 7... c6 {[%clk 0:12:01.2]} 8. Bb3 {[%clk 0:12:08.8]}
8... b5 {[%clk 0:12:01.4]} 9. a3 {[%clk 0:12:08.9]} 9... a5 {[%clk 0:12:01.7]}
10. O-O {[%clk 0:11:55.5]} 10... Ba6 {[%clk 0:12:01.7]} 11. Re1 {[%clk
0:11:55.2]} 11... Qc7 {[%clk 0:11:45.5]} 12. Bg3 {[%clk 0:11:53.8]} 12... Nh5
{[%clk 0:11:44.3]} 13. Nh4 {[%clk 0:11:51.8]} 13... Nxg3 {[%clk 0:11:44.4]} 14.
hxg3 {[%clk 0:11:52.1]} 14... e6 {[%clk 0:11:40.6]} 15. Nf3 {[%clk 0:11:36.8]}
15... Nd7 {[%clk 0:11:40.7]} 16. Ne2 {[%clk 0:11:25.5]} 16... Rfd8 {[%clk
0:11:37.1]} 17. Nf4 {[%clk 0:11:26.1]} 17... c5 {[%clk 0:11:36.8]} 18. dxc5
{[%clk 0:11:24.6]} 18... dxc5 {[%clk 0:11:36.6]} 19. Bxe6 {[%clk 0:10:44.5]}
19... Bxb2 {[%clk 0:11:10.6]} 20. Ba2 {[%clk 0:10:24.8]} 20... Bxa1 {[%clk
0:11:06.7]} 21. Qxa1 {[%clk 0:10:25.3]} 21... c4 {[%clk 0:11:05.8]} 22. e5
{[%clk 0:10:18.6]} 22... Nc5 {[%clk 0:10:59.2]} 23. e6 {[%clk 0:10:08.9]} 23...
Nxe6 {[%clk 0:10:21.4]} 24. Nxe6 {[%clk 0:10:04.5]} 24... fxe6 {[%clk
0:10:22.5]} 25. Rxe6 {[%clk 0:09:34.9]} 25... Qf7 {[%clk 0:10:22.5]} 26. Qe1
{[%clk 0:08:57.4]} 26... Re8 {[%clk 0:10:17.6]} 27. Nd4 {[%clk 0:08:57.9]} 27...
Rxe6 {[%clk 0:10:16.1]} 28. Qxe6 {[%clk 0:08:45.4]} 28... Qxe6 {[%clk
0:10:17.1]} 29. Nxe6 {[%clk 0:08:47.2]} 29... Ra7 {[%clk 0:09:57]} 30. Nc5
{[%clk 0:08:39.7]} 30... Bb7 {[%clk 0:09:47]} 31. a4 {[%clk 0:08:41.4]} 31...
Bd5 {[%clk 0:09:13]} 32. axb5 {[%clk 0:08:42]} 32... Rc7 {[%clk 0:09:14.7]} 33.
Na6 {[%clk 0:08:38.4]} 33... Rb7 {[%clk 0:09:11.4]} 34. c3 {[%clk 0:08:19.2]}
34... Rxb5 {[%clk 0:09:03.2]} 35. Nc7 {[%clk 0:08:19.6]} 35... Rb2 {[%clk
0:09:04.7]} 36. Nxd5 {[%clk 0:08:17.1]} 36... Rxa2 {[%clk 0:09:06.3]} 37. Nb6
{[%clk 0:08:17.3]} 37... Ra1+ {[%clk 0:08:57.3]} 38. Kh2 {[%clk 0:08:17.7]}
38... Rc1 {[%clk 0:08:53.6]} 39. Nxc4 {[%clk 0:08:18.5]} 39... a4 {[%clk
0:08:55.6]} 40. Ne5 {[%clk 0:07:59.3]} 40... Rxc3 {[%clk 0:08:51.3]} 0-1

[Event "Sabato rapido!"]
[Site "Chess.com"]
[Date "2020.05.02"]
[Round "4"]
[White "moha1812med"]
[Black "Mrtre7"]
[Result "0-1"]
[WhiteElo "987"]
[BlackElo "1422"]
[TimeControl "720+3"]
[EndTime "7:31:14 PDT"]
[Termination "Mrtre7 ha vinto per abbandono"]

1. d3 {[%clk 0:12:02.9]} 1... d5 {[%clk 0:12:01.4]} 2. d4 {[%clk 0:12:05.8]}
2... c5 {[%clk 0:11:56.6]} 3. e3 {[%clk 0:11:58.5]} 3... Nc6 {[%clk 0:11:53.2]}
4. dxc5 {[%clk 0:11:54.7]} 4... e5 {[%clk 0:11:38.9]} 5. e4 {[%clk 0:11:48.4]}
5... d4 {[%clk 0:11:38.5]} 6. Nf3 {[%clk 0:11:50.3]} 6... Bxc5 {[%clk
0:11:39.3]} 7. Bb5 {[%clk 0:11:50.5]} 7... Bg4 {[%clk 0:11:38.9]} 8. h3 {[%clk
0:11:48.9]} 8... Bh5 {[%clk 0:11:36.1]} 9. O-O {[%clk 0:11:50.1]} 9... Nf6
{[%clk 0:11:28.5]} 10. g4 {[%clk 0:11:20.7]} 10... Bxg4 {[%clk 0:11:11.8]} 11.
hxg4 {[%clk 0:11:17.5]} 11... Nxg4 {[%clk 0:11:12.9]} 12. Bg5 {[%clk 0:11:06.6]}
12... f6 {[%clk 0:11:07.8]} 13. Bh4 {[%clk 0:10:34.1]} 13... g5 {[%clk
0:11:08.9]} 14. Bg3 {[%clk 0:10:26.4]} 14... h5 {[%clk 0:11:10.7]} 15. Nfd2
{[%clk 0:09:31.5]} 15... Qd7 {[%clk 0:10:50.8]} 16. f3 {[%clk 0:09:26.6]} 16...
Ne3 {[%clk 0:10:50.5]} 17. Qe2 {[%clk 0:08:45.1]} 17... Nxf1 {[%clk 0:10:04]}
18. Qxf1 {[%clk 0:08:18.9]} 18... d3+ {[%clk 0:09:53.3]} 19. Bf2 {[%clk
0:07:48.8]} 19... Bxf2+ {[%clk 0:09:37.9]} 20. Qxf2 {[%clk 0:07:26.4]} 20...
dxc2 {[%clk 0:09:23.9]} 21. Nc3 {[%clk 0:07:19.3]} 21... O-O-O {[%clk
0:08:22.6]} 22. Rc1 {[%clk 0:06:13.2]} 22... Qxd2 {[%clk 0:08:18]} 23. Rxc2
{[%clk 0:06:05.4]} 23... Qxf2+ {[%clk 0:08:10.7]} 24. Rxf2 {[%clk 0:05:53.2]}
24... Nd4 {[%clk 0:08:08.8]} 25. Bc4 {[%clk 0:05:27.1]} 25... h4 {[%clk
0:08:09]} 26. Be6+ {[%clk 0:04:56.2]} 26... Nxe6 {[%clk 0:08:09.3]} 0-1

[Event "Sabato rapido!"]
[Site "Chess.com"]
[Date "2020.05.02"]
[Round "4"]
[White "Ollarov"]
[Black "laremaro"]
[Result "1-0"]
[WhiteElo "2007"]
[BlackElo "1739"]
[TimeControl "720+3"]
[EndTime "7:32:10 PDT"]
[Termination "Ollarov ha vinto per abbandono"]

1. e4 {[%clk 0:12:02.9]} 1... d5 {[%clk 0:11:59.8]} 2. exd5 {[%clk 0:12:04.2]}
2... Qxd5 {[%clk 0:12:00.5]} 3. Nc3 {[%clk 0:12:06.6]} 3... Qd6 {[%clk
0:12:01.5]} 4. d4 {[%clk 0:12:08.2]} 4... Nf6 {[%clk 0:12:01.2]} 5. Nf3 {[%clk
0:11:57.4]} 5... Bg4 {[%clk 0:12:02.1]} 6. Bb5+ {[%clk 0:11:58.6]} 6... c6
{[%clk 0:12:02.9]} 7. Be2 {[%clk 0:12:00.1]} 7... e6 {[%clk 0:12:04.5]} 8. Be3
{[%clk 0:11:45.5]} 8... Be7 {[%clk 0:12:03.2]} 9. Qd2 {[%clk 0:11:47.3]} 9...
Qc7 {[%clk 0:12:04.5]} 10. h3 {[%clk 0:11:48.1]} 10... Bh5 {[%clk 0:12:05.3]}
11. O-O-O {[%clk 0:11:46.7]} 11... O-O {[%clk 0:12:03.5]} 12. g4 {[%clk
0:11:48.8]} 12... Bg6 {[%clk 0:12:04.4]} 13. Ne5 {[%clk 0:11:50.4]} 13... Nbd7
{[%clk 0:12:03.8]} 14. h4 {[%clk 0:11:46.9]} 14... Be4 {[%clk 0:12:01.7]} 15.
Nxe4 {[%clk 0:11:46.3]} 15... Nxe4 {[%clk 0:12:02.6]} 16. Qd3 {[%clk 0:11:47.6]}
16... Nef6 {[%clk 0:11:21]} 17. g5 {[%clk 0:11:45.3]} 17... Nd5 {[%clk
0:11:20.8]} 18. Bd2 {[%clk 0:11:41]} 18... Nxe5 {[%clk 0:10:45.2]} 19. dxe5
{[%clk 0:11:41.7]} 19... Qxe5 {[%clk 0:10:26.3]} 20. Rde1 {[%clk 0:11:42.6]}
20... Nf4 {[%clk 0:10:12.3]} 21. Qf3 {[%clk 0:11:40.5]} 21... Nxe2+ {[%clk
0:09:58.2]} 22. Rxe2 {[%clk 0:11:40.5]} 22... Qd5 {[%clk 0:09:45]} 23. Qh3
{[%clk 0:11:30.8]} 23... Qxa2 {[%clk 0:09:41]} 24. c3 {[%clk 0:11:28.3]} 24...
Qa1+ {[%clk 0:09:37.8]} 25. Kc2 {[%clk 0:11:29.9]} 25... Qa4+ {[%clk 0:09:39.7]}
26. Kb1 {[%clk 0:11:30.6]} 26... Qb3 {[%clk 0:09:24.4]} 27. Bc1 {[%clk
0:11:11.5]} 27... Rfd8 {[%clk 0:09:10.9]} 28. Ree1 {[%clk 0:11:07.6]} 28... Rd7
{[%clk 0:08:56]} 29. g6 {[%clk 0:10:36.6]} 29... f5 {[%clk 0:06:49.7]} 30. gxh7+
{[%clk 0:10:01.5]} 30... Kh8 {[%clk 0:06:39.5]} 31. Qe3 {[%clk 0:09:58.3]} 31...
Rd6 {[%clk 0:06:24.9]} 32. h5 {[%clk 0:09:44.4]} 32... Bf6 {[%clk 0:06:26.6]}
33. Qg3 {[%clk 0:09:22.3]} 33... Rad8 {[%clk 0:06:26.2]} 34. h6 {[%clk
0:09:18.6]} 34... Rd3 {[%clk 0:06:19.6]} 35. hxg7+ {[%clk 0:09:01.2]} 35... Bxg7
{[%clk 0:06:21.1]} 36. Qg5 {[%clk 0:08:59.5]} 36... Bxc3 {[%clk 0:06:15.7]} 37.
Reg1 {[%clk 0:08:50.4]} 1-0

[Event "Sabato rapido!"]
[Site "Chess.com"]
[Date "2020.05.02"]
[Round "4"]
[White "fisherpez"]
[Black "donaldnecesito"]
[Result "1/2-1/2"]
[WhiteElo "1654"]
[BlackElo "1627"]
[TimeControl "720+3"]
[EndTime "7:34:39 PDT"]
[Termination "Partita patta per ripetizione di mosse"]

1. e3 {[%clk 0:12:02.9]} 1... d5 {[%clk 0:11:55.8]} 2. b3 {[%clk 0:12:03.8]}
2... e5 {[%clk 0:11:57.3]} 3. Bb2 {[%clk 0:12:05.6]} 3... Nc6 {[%clk 0:11:50.1]}
4. Bb5 {[%clk 0:12:06.7]} 4... Bd6 {[%clk 0:11:51.2]} 5. Nf3 {[%clk 0:12:07.2]}
5... Qe7 {[%clk 0:11:35.3]} 6. Bxc6+ {[%clk 0:12:06.6]} 6... bxc6 {[%clk
0:11:36.8]} 7. d3 {[%clk 0:12:05.8]} 7... Bg4 {[%clk 0:11:37.6]} 8. h3 {[%clk
0:12:06.9]} 8... Bh5 {[%clk 0:11:38.5]} 9. g4 {[%clk 0:12:08.5]} 9... Bg6 {[%clk
0:11:40.3]} 10. Qe2 {[%clk 0:12:02.1]} 10... Nf6 {[%clk 0:11:24.6]} 11. Nc3
{[%clk 0:11:32.8]} 11... O-O {[%clk 0:11:11.9]} 12. Nd2 {[%clk 0:11:17]} 12...
Rfe8 {[%clk 0:10:57.6]} 13. e4 {[%clk 0:11:10.9]} 13... d4 {[%clk 0:10:31.1]}
14. Na4 {[%clk 0:11:10.5]} 14... Bb4 {[%clk 0:10:24.8]} 15. O-O {[%clk
0:10:52.7]} 15... h5 {[%clk 0:10:14.1]} 16. f3 {[%clk 0:10:52.4]} 16... Nh7
{[%clk 0:09:40.8]} 17. Nc4 {[%clk 0:10:23.4]} 17... Qh4 {[%clk 0:09:28.8]} 18.
Qg2 {[%clk 0:10:23.3]} 18... Ng5 {[%clk 0:09:22.7]} 19. Kh2 {[%clk 0:10:01.3]}
19... Ne6 {[%clk 0:08:22]} 20. Bc1 {[%clk 0:09:50.7]} 20... Nf4 {[%clk
0:08:13.5]} 21. Bxf4 {[%clk 0:09:52.2]} 21... exf4 {[%clk 0:08:13.3]} 22. Rg1
{[%clk 0:09:12.8]} 22... f6 {[%clk 0:07:43.6]} 23. gxh5 {[%clk 0:09:07.9]} 23...
Qxh5 {[%clk 0:07:35.4]} 24. Qxg6 {[%clk 0:09:09.5]} 24... Qxg6 {[%clk
0:07:36.9]} 25. Rxg6 {[%clk 0:09:09.5]} 25... Kf7 {[%clk 0:07:37.5]} 26. Rag1
{[%clk 0:08:59.7]} 26... Rg8 {[%clk 0:07:20.6]} 27. R6g4 {[%clk 0:08:53.4]}
27... g5 {[%clk 0:07:20.5]} 28. h4 {[%clk 0:08:39.4]} 28... Rh8 {[%clk 0:07:14]}
29. Kh3 {[%clk 0:08:38.2]} 29... Rh5 {[%clk 0:07:12.9]} 30. Kg2 {[%clk
0:08:32.4]} 30... Rah8 {[%clk 0:07:11.8]} 31. Rh1 {[%clk 0:08:22.2]} 31... gxh4
{[%clk 0:07:12.7]} 32. Kh3 {[%clk 0:08:19.4]} 32... Rg5 {[%clk 0:07:01.1]} 33.
Rxf4 {[%clk 0:08:12.2]} 33... Rg3+ {[%clk 0:07:02]} 34. Kh2 {[%clk 0:08:12.1]}
34... Rhg8 {[%clk 0:06:59.7]} 35. Rf1 {[%clk 0:07:57.8]} 35... Be7 {[%clk
0:06:20.6]} 36. Ne5+ {[%clk 0:07:57.4]} 36... Ke6 {[%clk 0:06:08.5]} 37. Ng4
{[%clk 0:07:57.4]} 37... Bd6 {[%clk 0:05:55]} 38. Rxf6+ {[%clk 0:07:56.6]} 38...
Ke7 {[%clk 0:05:56.6]} 39. Kh1 {[%clk 0:07:45.3]} 39... Rh3+ {[%clk 0:05:36.2]}
40. Kg2 {[%clk 0:07:41.9]} 40... Rh2+ {[%clk 0:05:37.6]} 41. Kg1 {[%clk
0:07:37.6]} 41... h3 {[%clk 0:05:30.6]} 42. e5 {[%clk 0:07:34.5]} 42... Bxe5
{[%clk 0:05:25.2]} 43. Rxc6 {[%clk 0:07:30.1]} 43... Rg2+ {[%clk 0:05:17.2]} 44.
Kh1 {[%clk 0:07:30.9]} 44... Bd6 {[%clk 0:05:01.1]} 45. Nc5 {[%clk 0:06:43]}
45... R8xg4 {[%clk 0:04:51.2]} 46. fxg4 {[%clk 0:06:40.6]} 46... Rh2+ {[%clk
0:04:52.3]} 47. Kg1 {[%clk 0:06:41.6]} 47... Rg2+ {[%clk 0:04:55.2]} 48. Kh1
{[%clk 0:06:43.3]} 48... Rh2+ {[%clk 0:04:58.1]} 49. Kg1 {[%clk 0:06:45.5]}
49... Rg2+ {[%clk 0:05:01]} 50. Kh1 {[%clk 0:06:47.8]} 1/2-1/2